fUST/lending_fUST_20250702
["ID","MTS","AMOUNT","RATE_DAILY","PERIOD"]
[368992740,1751428233656,-460.0,0.00016899,2]
[368992741,1751428233665,-460.0,0.00016899,2]
[368992742,1751428233674,-765.74,0.00016899,2]
[368992743,1751428233685,-460.0,0.00016899,2]
[368992744,1751428233694,-1048.77,0.00016899,2]
[368992745,1751428233704,-708.63,0.00016899,2]
[368992746,1751428233714,-460.0,0.00016899,2]
[368992747,1751428233724,-460.0,0.00016899,2]
[368992748,1751428233734,-506.76801874,0.00016899,2]
[368992749,1751428233744,-1327.44,0.00016899,2]
[368992750,1751428233754,-460.0,0.00016899,2]
[368992751,1751428233764,-862.22,0.00016899,2]
[368992752,1751428233774,-1091.03,0.00016899,2]
[368992753,1751428233784,-72200.31835615,0.000169,2]
[368992769,1751428238084,-500.0,0.00016891,2]
[368992770,1751428238094,-500.0,0.00016891,2]
[368992771,1751428238104,-500.0,0.00016891,2]
[368992772,1751428238114,-500.0,0.00016891,2]
[368992773,1751428238124,-316.57422944,0.00016891,2]
[368992774,1751428238133,-500.0,0.00016891,2]
[368992775,1751428238143,-500.0,0.00016891,2]
[368992776,1751428238152,-194.55561249,0.00016891,2]
[368992777,1751428238161,-500.0,0.00016891,2]
[368992778,1751428238170,-500.0,0.00016891,2]
[368992779,1751428238180,-622.93344969,0.00016891,2]
[368992780,1751428238189,-500.0,0.00016891,2]
[368992781,1751428238198,-500.0,0.00016891,2]
[368992782,1751428238207,-500.0,0.00016891,2]
[368992783,1751428238216,-609.06967734,0.00016891,2]
[368992784,1751428238226,-500.0,0.00016891,2]
[368992785,1751428238235,-500.0,0.00016891,2]
[368992786,1751428238245,-500.0,0.00016891,2]
[368992787,1751428238254,-500.0,0.00016891,2]
[368992788,1751428238264,-500.0,0.00016891,2]
[368992789,1751428238273,-1659.72,0.00016893,2]
[368992790,1751428238282,-429.11271802,0.00016895,2]
[368992791,1751428238291,-460.0,0.00016895,2]
[368992792,1751428238301,-473.3872097,0.00016895,2]
[368992793,1751428238310,-297799.68164385,0.000169,2]
[368992794,1751428238319,-151.0,0.000169,2]
[368992795,1751428238329,-460.0,0.00016998,2]
[368992796,1751428238338,-511.43301409,0.00016998,2]
[368992797,1751428238347,-460.0,0.00016998,2]
[368992798,1751428238357,-466.10864289,0.00016998,2]
[368992799,1751428238366,-460.0,0.00016998,2]
[368992800,1751428238375,-460.0,0.00016998,2]
[368992801,1751428238384,-460.0,0.00016998,2]
[368992802,1751428238394,-460.0,0.00016998,2]
[368992803,1751428238403,-430.82614413,0.00016998,2]
[368992804,1751428238412,-225.12491205,0.00016998,2]
[368992805,1751428238421,-460.0,0.00016998,2]
[368992806,1751428238430,-460.0,0.00016998,2]
[368992807,1751428238440,-460.0,0.00016998,2]
[368992808,1751428238449,-469.63483697,0.00016998,2]
[368992809,1751428238458,-460.0,0.00016998,2]
[368992810,1751428238467,-461.30638308,0.00016998,2]
[368992811,1751428238476,-231.02696384,0.00016998,2]
[368992812,1751428238488,-262.78547494,0.00016998,2]
[368992813,1751428238498,-461.94604253,0.00016998,2]
[368992814,1751428238507,-460.73913064,0.00016998,2]
[368992815,1751428238517,-344.79575709,0.00016998,2]
[368992816,1751428238527,-460.0,0.00016998,2]
[368992817,1751428238536,-460.0,0.00016998,2]
[368992818,1751428238545,-460.0,0.00016998,2]
[368992819,1751428238556,-460.0,0.00016998,2]
[368992820,1751428238566,-207.82899112,0.00016998,2]
[368992821,1751428238576,-503.34554303,0.00016998,2]
[368992822,1751428238585,-460.0,0.00016998,2]
[368992823,1751428238595,-460.0,0.00016998,2]
[368992824,1751428238604,-503.42,0.00016998,2]
[368992825,1751428238614,-460.0,0.00016998,2]
[368992826,1751428238623,-500.0,0.00016998,2]
[368992827,1751428238633,-460.0,0.00016998,2]
[368992828,1751428238642,-460.0,0.00016998,2]
[368992829,1751428238651,-460.0,0.00016998,2]
[368992830,1751428238661,-460.0,0.00016998,2]
[368992831,1751428238670,-2090.96,0.00016998,2]
[368992832,1751428238679,-460.0,0.00016998,2]
[368992833,1751428238688,-460.0,0.00016998,2]
[368992834,1751428238697,-460.0,0.00016998,2]
[368992835,1751428238707,-460.0,0.00016998,2]
[368992836,1751428238716,-460.0,0.00016998,2]
[368992837,1751428238726,-460.0,0.00016998,2]
[368992838,1751428238735,-460.0,0.00016998,2]
[368992839,1751428238744,-460.0,0.00016998,2]
[368992840,1751428238754,-504.35369056,0.00016998,2]
[368992841,1751428238763,-460.0,0.00016998,2]
[368992842,1751428238772,-460.0,0.00016998,2]
[368992843,1751428238782,-460.0,0.00016998,2]
[368992844,1751428238791,-460.0,0.00016998,2]
[368992845,1751428238800,-460.0,0.00016998,2]
[368992846,1751428238810,-460.0,0.00016998,2]
[368992847,1751428238819,-460.0,0.00016998,2]
[368992848,1751428238828,-460.0,0.00016998,2]
[368992849,1751428238838,-460.0,0.00016998,2]
[368992850,1751428238848,-460.0,0.00016998,2]
[368992851,1751428238858,-174.75220888,0.00016998,2]
[368992852,1751428238868,-460.0,0.00016998,2]
[368992853,1751428238877,-193.90173622,0.00016998,2]
[368992854,1751428238886,-460.0,0.00016998,2]
[368992855,1751428238896,-460.0,0.00016998,2]
[368992856,1751428238905,-460.0,0.00016998,2]
[368992857,1751428238914,-597.43611835,0.00016998,2]
[368992858,1751428238923,-485.46,0.00016998,2]
[368992859,1751428238932,-460.0,0.00016998,2]
[368992860,1751428238942,-460.0,0.00016998,2]
[368992861,1751428238952,-466.49879444,0.00016998,2]
[368992862,1751428238961,-460.0,0.00016998,2]
[368992863,1751428238970,-469.29383789,0.00016998,2]
[368992864,1751428238980,-460.0,0.00016998,2]
[368992865,1751428238990,-4166.15,0.00016998,2]
[368992866,1751428238999,-460.0,0.00016998,2]
[368992867,1751428239008,-460.0,0.00016998,2]
[368992868,1751428239018,-533.46810752,0.00016998,2]
[368992869,1751428239027,-460.0,0.00016998,2]
[368992870,1751428239146,-1076.06,0.00016998,2]
[368992871,1751428239156,-460.0,0.00016998,2]
[368992872,1751428239166,-460.0,0.00016998,2]
[368992873,1751428239175,-460.0,0.00016998,2]
[368992874,1751428239185,-524.18265194,0.00016998,2]
[368992875,1751428239194,-460.0,0.00016998,2]
[368992876,1751428239204,-460.0,0.00016998,2]
[368992877,1751428239215,-460.0,0.00016998,2]
[368992878,1751428239224,-460.0,0.00016998,2]
[368992879,1751428239234,-460.0,0.00016998,2]
[368992880,1751428239243,-462.26133505,0.00016998,2]
[368992881,1751428239252,-460.0,0.00016998,2]
[368992882,1751428239261,-460.0,0.00016998,2]
[368992883,1751428239271,-229.75509226,0.00016998,2]
[368992884,1751428239280,-460.0,0.00016998,2]
[368992885,1751428239290,-460.0,0.00016998,2]
[368992886,1751428239299,-460.0,0.00016998,2]
[368992887,1751428239308,-467.23842321,0.00017022,2]
[368992888,1751428239317,-463.16416492,0.00017022,2]
[368992889,1751428239327,-468.06062768,0.00017022,2]
[368992890,1751428239337,-460.0,0.00017022,2]
[368992891,1751428239347,-469.35955605,0.00017022,2]
[368992892,1751428239357,-460.0,0.00017022,2]
[368992893,1751428239366,-460.0,0.00017022,2]
[368992894,1751428239378,-348.97810416,0.00017022,2]
[368992895,1751428239388,-338.44964332,0.00017022,2]
[368992896,1751428239398,-460.0,0.00017022,2]
[368992897,1751428239408,-546.95,0.00017022,2]
[368992898,1751428239418,-460.0,0.00017022,2]
[368992899,1751428239428,-460.0,0.00017023,2]
[368992900,1751428239438,-410.0,0.00017023,2]
[368992902,1751428239447,-460.0,0.00017023,2]
[368992903,1751428239458,-460.0,0.00017023,2]
[368992904,1751428239470,-461.14352202,0.00017023,2]
[368992905,1751428239479,-460.0,0.00017027,2]
[368992906,1751428239493,-467.27691225,0.00017027,2]
[368992907,1751428239503,-460.0,0.00017027,2]
[368992908,1751428239513,-460.0,0.00017027,2]
[368992909,1751428239524,-602.1356844,0.00017027,2]
[368992910,1751428239535,-151.0,0.000171,2]
[368992911,1751428239547,-458.46418894,0.00017153,2]
[368992912,1751428239557,-460.0,0.00017167,2]
[368992913,1751428239567,-524.0462212,0.00017167,2]
[368992914,1751428239578,-462.72702027,0.00017167,2]
[368992915,1751428239589,-473.43645387,0.00017167,2]
[368992916,1751428239599,-461.57974771,0.00017167,2]
[368992917,1751428239610,-460.0,0.00017167,2]
[368992918,1751428239621,-460.0,0.00017167,2]
[368992919,1751428239631,-469.70480583,0.00017167,2]
[368992920,1751428239642,-1158.83,0.00017167,2]
[368992921,1751428239653,-460.0,0.00017167,2]
[368992922,1751428239663,-460.0,0.00017167,2]
[368992923,1751428239674,-1659.72,0.00017167,2]
[368992924,1751428239683,-460.0,0.00017169,2]
[368992925,1751428239693,-460.0,0.00017169,2]
[368992926,1751428239703,-460.0,0.00017169,2]
[368992927,1751428239712,-460.0,0.00017169,2]
[368992928,1751428239722,-752.34,0.00017169,2]
[368992929,1751428239731,-237.38976658,0.00017169,2]
[368992930,1751428239741,-1771.08,0.00017169,2]
[368992931,1751428239750,-468.85549186,0.00017169,2]
[368992932,1751428239760,-285.80702434,0.00017169,2]
[368992933,1751428239769,-470.93813534,0.00017169,2]
[368992934,1751428239779,-460.0,0.00017169,2]
[368992935,1751428239789,-460.0,0.00017169,2]
[368992936,1751428239798,-460.0,0.00017169,2]
[368992937,1751428239808,-460.0,0.00017169,2]
[368992938,1751428239818,-1157.71,0.00017169,2]
[368992939,1751428239829,-1616.62,0.00017169,2]
[368992940,1751428239839,-1898.72,0.00017169,2]
[368992941,1751428239850,-460.0,0.00017169,2]
[368992942,1751428239860,-1046.41,0.00017169,2]
[368992943,1751428239870,-460.0,0.00017169,2]
[368992944,1751428239881,-460.0,0.00017169,2]
[368992945,1751428239891,-460.0,0.00017169,2]
[368992946,1751428239900,-460.0,0.00017169,2]
[368992947,1751428239910,-1307.17,0.00017169,2]
[368992948,1751428239920,-460.0,0.00017169,2]
[368992949,1751428239930,-460.0,0.00017169,2]
[368992950,1751428239939,-465.18,0.00017169,2]
[368992951,1751428239949,-473.56007685,0.00017169,2]
[368992952,1751428239958,-460.0,0.00017169,2]
[368992954,1751428239968,-460.0,0.00017169,2]
[368992955,1751428239977,-492.8287966,0.00017169,2]
[368992957,1751428239987,-476.52921195,0.0001717,2]
[368992959,1751428239996,-460.0,0.0001717,2]
[368992961,1751428240006,-474.4678957,0.00017172,2]
[368992963,1751428240016,-442.59542659,0.00017172,2]
[368992965,1751428240026,-329.25904507,0.00017172,2]
[368992967,1751428240035,-460.0,0.00017172,2]
[368992969,1751428240045,-460.0,0.00017172,2]
[368992971,1751428240055,-453.331416,0.00017172,2]
[368992974,1751428240065,-572.39741055,0.00017172,2]
[368992976,1751428240075,-460.0,0.00017172,2]
[368992977,1751428240084,-460.0,0.00017172,2]
[368992979,1751428240094,-460.0,0.00017172,2]
[368992981,1751428240103,-460.0,0.00017172,2]
[368992983,1751428240113,-460.0,0.00017172,2]
[368992985,1751428240123,-460.0,0.00017172,2]
[368992986,1751428240135,-460.0,0.00017172,2]
[368992987,1751428240145,-460.0,0.00017172,2]
[368992988,1751428240155,-460.0,0.00017172,2]
[368992989,1751428240165,-460.0,0.00017172,2]
[368992990,1751428240176,-471.95130431,0.00017172,2]
[368992991,1751428240186,-544.36,0.00017172,2]
[368992992,1751428240196,-460.0,0.00017172,2]
[368992993,1751428240206,-460.0,0.00017172,2]
[368992994,1751428240216,-562.05376887,0.00017172,2]
[368992995,1751428240226,-2299.17,0.00017172,2]
[368992996,1751428240235,-460.0,0.00017172,2]
[368992997,1751428240245,-460.0,0.00017172,2]
[368992998,1751428240254,-460.0,0.00017172,2]
[368992999,1751428240264,-460.0,0.00017172,2]
[368993000,1751428240273,-624.02,0.00017172,2]
[368993002,1751428240283,-470.24402257,0.00017172,2]
[368993004,1751428240292,-460.0,0.00017172,2]
[368993006,1751428240302,-573.65491035,0.00017172,2]
[368993008,1751428240312,-614.54,0.00017172,2]
[368993010,1751428240321,-460.0,0.00017172,2]
[368993012,1751428240331,-460.0,0.00017172,2]
[368993014,1751428240340,-460.0,0.00017172,2]
[368993016,1751428240350,-460.0,0.00017172,2]
[368993018,1751428240360,-460.0,0.00017172,2]
[368993020,1751428240369,-460.0,0.00017172,2]
[368993022,1751428240379,-460.0,0.00017172,2]
[368993024,1751428240388,-460.0,0.00017172,2]
[368993026,1751428240397,-460.0,0.00017172,2]
[368993028,1751428240407,-508.63655602,0.00017173,2]
[368993030,1751428240416,-500.0,0.00017173,2]
[368993032,1751428240426,-500.0,0.00017173,2]
[368993034,1751428240435,-501.10070424,0.00017173,2]
[368993036,1751428240443,-500.0,0.00017173,2]
[368993038,1751428240453,-500.0,0.00017173,2]
[368993040,1751428240462,-504.55706258,0.00017173,2]
[368993042,1751428240471,-502.43379936,0.00017173,2]
[368993044,1751428240481,-500.0,0.00017173,2]
[368993046,1751428240494,-460.0,0.00017173,2]
[368993048,1751428240504,-460.0,0.00017173,2]
[368993050,1751428240513,-460.0,0.00017173,2]
[368993052,1751428240523,-460.0,0.00017173,2]
[368993054,1751428240533,-482.98679101,0.00017173,2]
[368993056,1751428240542,-495.52145007,0.00017173,2]
[368993058,1751428240551,-480.78884114,0.00017173,2]
[368993061,1751428240561,-3147.41,0.00017173,2]
[368993063,1751428240572,-460.0,0.00017173,2]
[368993065,1751428240582,-460.0,0.00017173,2]
[368993067,1751428240592,-460.0,0.00017173,2]
[368993069,1751428240601,-765.74,0.00017173,2]
[368993071,1751428240610,-460.0,0.00017173,2]
[368993073,1751428240619,-1048.77,0.00017173,2]
[368993074,1751428240631,-708.63,0.00017173,2]
[368993076,1751428240641,-470.33824139,0.00017173,2]
[368993078,1751428240651,-460.0,0.00017173,2]
[368993080,1751428240660,-1327.44,0.00017173,2]
[368993082,1751428240669,-460.0,0.00017173,2]
[368993085,1751428240679,-862.22,0.00017173,2]
[368993087,1751428240687,-1091.03,0.00017173,2]
[368993089,1751428240697,-477.01793518,0.00017272,2]
[368993091,1751428240706,-460.0,0.00017272,2]
[368993093,1751428240717,-469.12705217,0.00017272,2]
[368993095,1751428240727,-460.0,0.00017272,2]
[368993097,1751428240737,-460.0,0.00017272,2]
[368993099,1751428240746,-460.0,0.00017272,2]
[368993101,1751428240755,-460.0,0.00017272,2]
[368993103,1751428240765,-472.54743645,0.00017272,2]
[368993105,1751428240774,-445.40825757,0.00017272,2]
[368993107,1751428240783,-353.57618971,0.00017272,2]
[368993109,1751428240792,-466.28789119,0.00017272,2]
[368993111,1751428240802,-460.0,0.00017272,2]
[368993113,1751428240811,-460.0,0.00017272,2]
[368993115,1751428240821,-460.0,0.00017272,2]
[368993117,1751428240830,-460.0,0.00017272,2]
[368993119,1751428240839,-500.0,0.00017272,2]
[368993121,1751428240849,-460.0,0.00017272,2]
[368993123,1751428240858,-460.0,0.00017272,2]
[368993125,1751428240867,-399.07,0.00017272,2]
[368993127,1751428240877,-460.0,0.00017272,2]
[368993129,1751428240886,-2090.96,0.00017272,2]
[368993132,1751428240895,-460.0,0.00017272,2]
[368993134,1751428240905,-460.0,0.00017272,2]
[368993136,1751428240915,-460.0,0.00017272,2]
[368993138,1751428240924,-460.0,0.00017272,2]
[368993149,1751428241025,-460.0,0.00017272,2]
[368993152,1751428241035,-460.0,0.00017272,2]
[368993154,1751428241045,-460.0,0.00017272,2]
[368993156,1751428241055,-460.0,0.00017272,2]
[368993158,1751428241065,-292.08,0.00017272,2]
[368993160,1751428241075,-460.0,0.00017272,2]
[368993162,1751428241084,-460.0,0.00017272,2]
[368993164,1751428241094,-460.0,0.00017272,2]
[368993166,1751428241103,-460.0,0.00017272,2]
[368993168,1751428241113,-460.0,0.00017272,2]
[368993170,1751428241122,-460.0,0.00017272,2]
[368993172,1751428241131,-460.0,0.00017272,2]
[368993174,1751428241140,-460.0,0.00017272,2]
[368993176,1751428241150,-460.0,0.00017272,2]
[368993178,1751428241159,-460.0,0.00017272,2]
[368993180,1751428241168,-460.0,0.00017272,2]
[368993182,1751428241177,-460.0,0.00017272,2]
[368993184,1751428241187,-460.0,0.00017272,2]
[368993186,1751428241197,-485.46,0.00017272,2]
[368993188,1751428241207,-460.0,0.00017272,2]
[368993190,1751428241216,-321.84247441,0.00017272,2]
[368993192,1751428241225,-460.0,0.00017272,2]
[368993194,1751428241235,-460.0,0.00017272,2]
[368993196,1751428241244,-4166.15,0.00017272,2]
[368993198,1751428241253,-460.0,0.00017272,2]
[368993200,1751428241262,-460.0,0.00017272,2]
[368993202,1751428241271,-1076.06,0.00017272,2]
[368993204,1751428241281,-526.99669525,0.00017272,2]
[368993206,1751428241290,-460.0,0.00017272,2]
[368993208,1751428241299,-460.0,0.00017272,2]
[368993210,1751428241308,-460.0,0.00017272,2]
[368993212,1751428241317,-564.31115602,0.00017272,2]
[368993214,1751428241327,-460.0,0.00017272,2]
[368993216,1751428241336,-460.0,0.00017272,2]
[368993218,1751428241345,-460.0,0.00017272,2]
[368993220,1751428241354,-460.0,0.00017272,2]
[368993222,1751428241363,-460.0,0.00017272,2]
[368993224,1751428241373,-460.0,0.00017272,2]
[368993226,1751428241383,-460.0,0.00017272,2]
[368993229,1751428241392,-460.0,0.00017296,2]
[368993230,1751428241401,-460.0,0.00017296,2]
[368993232,1751428241410,-460.0,0.00017296,2]
[368993234,1751428241419,-472.34768269,0.00017296,2]
[368993236,1751428241429,-546.95,0.00017296,2]
[368993238,1751428241439,-460.0,0.00017296,2]
[368993240,1751428241448,-464.88762049,0.00017297,2]
[368993242,1751428241457,-151.0,0.000173,2]
[368993244,1751428241467,-472.14063789,0.00017301,2]
[368993247,1751428241476,-206.14246823,0.00017301,2]
[368993248,1751428241490,-151.0,0.00017397,2]
[368993251,1751428241499,-151.0,0.00017397,2]
[368993253,1751428241508,-173.72017,0.00017397,2]
[368993255,1751428241517,-173.72017,0.00017397,2]
[368993257,1751428241527,-1324.257229,0.00017397,2]
[368993259,1751428241536,-158.485401,0.00017397,2]
[368993261,1751428241545,-158.485401,0.00017397,2]
[368993263,1751428241556,-1480.25366966,0.00017441,2]
[368993265,1751428241568,-460.0,0.00017441,2]
[368993267,1751428241577,-460.0,0.00017441,2]
[368993269,1751428241587,-1158.83,0.00017441,2]
[368993271,1751428241596,-460.0,0.00017441,2]
[368993273,1751428241605,-460.0,0.00017441,2]
[368993275,1751428241615,-460.0,0.00017443,2]
[368993277,1751428241624,-460.0,0.00017443,2]
[368993279,1751428241634,-480.97968229,0.00017443,2]
[368993281,1751428241644,-752.34,0.00017443,2]
[368993283,1751428241654,-1771.08,0.00017443,2]
[368993285,1751428241665,-460.0,0.00017443,2]
[368993287,1751428241676,-460.0,0.00017443,2]
[368993289,1751428241685,-460.0,0.00017443,2]
[368993291,1751428241696,-460.0,0.00017443,2]
[368993293,1751428241706,-1157.71,0.00017443,2]
[368993295,1751428241715,-1616.62,0.00017443,2]
[368993297,1751428241724,-1898.72,0.00017443,2]
[368993299,1751428241734,-460.0,0.00017443,2]
[368993301,1751428241743,-1046.41,0.00017443,2]
[368993303,1751428241752,-460.0,0.00017443,2]
[368993305,1751428241761,-460.0,0.00017443,2]
[368993307,1751428241770,-460.0,0.00017443,2]
[368993309,1751428241779,-460.0,0.00017443,2]
[368993311,1751428241789,-1307.17,0.00017443,2]
[368993313,1751428241799,-460.0,0.00017443,2]
[368993315,1751428241808,-460.0,0.00017443,2]
[368993317,1751428241818,-465.18,0.00017443,2]
[368993319,1751428241827,-460.0,0.00017443,2]
[368993321,1751428241835,-470.92040866,0.00017443,2]
[368993323,1751428241845,-460.0,0.00017446,2]
[368993325,1751428241854,-460.0,0.00017446,2]
[368993327,1751428241863,-460.0,0.00017446,2]
[368993329,1751428241872,-460.0,0.00017446,2]
[368993331,1751428241881,-477.22943586,0.00017446,2]
[368993333,1751428241891,-460.0,0.00017446,2]
[368993335,1751428241900,-479.92172396,0.00017446,2]
[368993337,1751428241909,-474.45733634,0.00017446,2]
[368993339,1751428241918,-460.0,0.00017446,2]
[368993341,1751428241927,-460.0,0.00017446,2]
[368993343,1751428241936,-460.0,0.00017446,2]
[368993345,1751428241946,-460.0,0.00017446,2]
[368993347,1751428241956,-544.36,0.00017446,2]
[368993349,1751428241966,-460.0,0.00017446,2]
[368993351,1751428241975,-460.0,0.00017446,2]
[368993353,1751428241984,-2299.17,0.00017446,2]
[368993355,1751428241994,-460.0,0.00017446,2]
[368993357,1751428242003,-460.0,0.00017446,2]
[368993359,1751428242011,-460.0,0.00017446,2]
[368993361,1751428242020,-592.47055719,0.00017446,2]
[368993363,1751428242030,-624.02,0.00017446,2]
[368993365,1751428242039,-460.0,0.00017446,2]
[368993367,1751428242049,-614.54,0.00017446,2]
[368993369,1751428242058,-460.0,0.00017446,2]
[368993371,1751428242067,-460.0,0.00017446,2]
[368993373,1751428242077,-460.0,0.00017446,2]
[368993375,1751428242086,-524.57428927,0.00017446,2]
[368993377,1751428242095,-460.0,0.00017446,2]
[368993379,1751428242104,-460.0,0.00017446,2]
[368993381,1751428242113,-460.0,0.00017446,2]
[368993383,1751428242123,-460.0,0.00017446,2]
[368993385,1751428242132,-460.0,0.00017446,2]
[368993387,1751428242142,-460.0,0.00017447,2]
[368993389,1751428242152,-410.77662172,0.00017447,2]
[368993391,1751428242162,-460.0,0.00017447,2]
[368993393,1751428242171,-460.0,0.00017447,2]
[368993395,1751428242181,-3147.41,0.00017447,2]
[368993397,1751428242191,-460.0,0.00017447,2]
[368993399,1751428242200,-460.0,0.00017447,2]
[368993401,1751428242209,-460.0,0.00017447,2]
[368993403,1751428242219,-765.74,0.00017447,2]
[368993405,1751428242228,-460.0,0.00017447,2]
[368993407,1751428242237,-1048.77,0.00017447,2]
[368993409,1751428242246,-708.63,0.00017447,2]
[368993411,1751428242256,-460.0,0.00017447,2]
[368993413,1751428242265,-1327.44,0.00017447,2]
[368993415,1751428242275,-460.0,0.00017447,2]
[368993417,1751428242284,-862.22,0.00017447,2]
[368993419,1751428242293,-1091.03,0.00017447,2]
[368993421,1751428242303,-151.0,0.000175,2]
[368993423,1751428242312,-466.936925,0.00017546,2]
[368993425,1751428242321,-460.0,0.00017546,2]
[368993427,1751428242332,-460.0,0.00017546,2]
[368993429,1751428242341,-460.0,0.00017546,2]
[368993431,1751428242351,-460.0,0.00017546,2]
[368993433,1751428242360,-392.00607267,0.00017546,2]
[368993435,1751428242369,-473.16428298,0.00017546,2]
[368993437,1751428242379,-460.0,0.00017546,2]
[368993439,1751428242388,-500.0,0.00017546,2]
[368993441,1751428242398,-460.0,0.00017546,2]
[368993443,1751428242407,-460.0,0.00017546,2]
[368993445,1751428242416,-460.0,0.00017546,2]
[368993447,1751428242425,-2090.96,0.00017546,2]
[368993450,1751428242434,-598.88,0.00017546,2]
[368993453,1751428242443,-460.0,0.00017546,2]
[368993455,1751428242452,-460.0,0.00017546,2]
[368993457,1751428242461,-460.0,0.00017546,2]
[368993459,1751428242471,-589.42424612,0.00017546,2]
[368993461,1751428242481,-460.0,0.00017546,2]
[368993464,1751428242495,-460.0,0.00017546,2]
[368993468,1751428242505,-206.14757893,0.00017546,2]
[368993470,1751428242514,-460.0,0.00017546,2]
[368993472,1751428242524,-460.0,0.00017546,2]
[368993474,1751428242534,-460.0,0.00017546,2]
[368993476,1751428242544,-460.0,0.00017546,2]
[368993478,1751428242553,-460.0,0.00017546,2]
[368993481,1751428242566,-460.0,0.00017546,2]
[368993483,1751428242576,-460.0,0.00017546,2]
[368993485,1751428242585,-460.0,0.00017546,2]
[368993487,1751428242596,-460.0,0.00017546,2]
[368993489,1751428242605,-466.55853218,0.00017546,2]
[368993501,1751428242615,-460.0,0.00017546,2]
[368993503,1751428242713,-460.0,0.00017546,2]
[368993505,1751428242724,-485.46,0.00017546,2]
[368993506,1751428242734,-311.54766186,0.00017546,2]
[368993507,1751428242743,-469.46374903,0.00017546,2]
[368993509,1751428242752,-4166.15,0.00017546,2]
[368993511,1751428242762,-460.0,0.00017546,2]
[368993513,1751428242771,-465.72196678,0.00017546,2]
[368993515,1751428242781,-1076.06,0.00017546,2]
[368993516,1751428242790,-460.0,0.00017546,2]
[368993517,1751428242799,-460.0,0.00017546,2]
[368993518,1751428242808,-460.0,0.00017546,2]
[368993519,1751428242818,-460.0,0.00017546,2]
[368993520,1751428242827,-460.0,0.00017546,2]
[368993521,1751428242837,-460.0,0.00017546,2]
[368993522,1751428242846,-460.0,0.00017546,2]
[368993523,1751428242855,-438.26491176,0.00017546,2]
[368993524,1751428242865,-460.0,0.00017546,2]
[368993525,1751428242875,-460.0,0.0001757,2]
[368993526,1751428242884,-460.0,0.0001757,2]
[368993527,1751428242893,-460.0,0.0001757,2]
[368993528,1751428242903,-546.95,0.0001757,2]
[368993529,1751428242912,-460.0,0.0001757,2]
[368993530,1751428242922,-506.2084547,0.00017612,2]
[368993531,1751428242931,-500.0,0.00017612,2]
[368993533,1751428242941,-151.0,0.000177,2]
[368993535,1751428242950,-599.47434212,0.00017715,2]
[368993537,1751428242959,-460.0,0.00017715,2]
[368993539,1751428242968,-1158.83,0.00017715,2]
[368993541,1751428242978,-460.0,0.00017715,2]
[368993543,1751428242987,-488.64887811,0.00017717,2]
[368993545,1751428242996,-460.0,0.00017717,2]
[368993547,1751428243005,-752.34,0.00017717,2]
[368993549,1751428243015,-1771.08,0.00017717,2]
[368993551,1751428243024,-460.0,0.00017717,2]
[368993553,1751428243033,-460.0,0.00017717,2]